fUST/lending_fUST_20250719
["ID","MTS","AMOUNT","RATE_DAILY","PERIOD"]
[373187396,1752898241583,-460.0,0.00017058,2]
[373187397,1752898241593,-460.0,0.00017058,2]
[373187398,1752898241602,-460.0,0.00017058,2]
[373187399,1752898241612,-460.0,0.00017058,2]
[373187400,1752898241621,-460.0,0.00017058,2]
[373187401,1752898241631,-460.0,0.00017058,2]
[373187402,1752898241640,-460.0,0.00017058,2]
[373187403,1752898241650,-460.0,0.00017058,2]
[373187404,1752898241659,-460.0,0.00017058,2]
[373187405,1752898241669,-460.0,0.00017058,2]
[373187406,1752898241678,-460.0,0.00017058,2]
[373187407,1752898241688,-460.0,0.00017058,2]
[373187408,1752898241698,-460.0,0.00017058,2]
[373187409,1752898241708,-460.0,0.00017058,2]
[373187410,1752898241718,-257.76349841,0.00017058,2]
[373187411,1752898241728,-460.0,0.00017058,2]
[373187412,1752898241739,-460.0,0.00017058,2]
[373187413,1752898241748,-460.0,0.00017058,2]
[373187414,1752898241759,-460.0,0.00017058,2]
[373187415,1752898241769,-460.0,0.00017058,2]
[373187416,1752898241780,-460.0,0.00017058,2]
[373187417,1752898241790,-460.0,0.00017058,2]
[373187418,1752898241801,-460.52228148,0.00017058,2]
[373187419,1752898241811,-460.0,0.00017058,2]
[373187420,1752898241823,-460.0,0.00017058,2]
[373187421,1752898241834,-460.0,0.00017058,2]
[373187422,1752898241853,-500.0,0.00017058,2]
[373187423,1752898241865,-460.0,0.00017058,2]
[373187424,1752898241876,-525.62,0.00017058,2]
[373187425,1752898241886,-460.0,0.00017058,2]
[373187426,1752898241897,-460.0,0.00017058,2]
[373187427,1752898241909,-460.0,0.00017058,2]
[373187428,1752898241918,-460.0,0.00017058,2]
[373187429,1752898241931,-793.2,0.00017058,2]
[373187430,1752898241942,-460.0,0.00017058,2]
[373187431,1752898241953,-460.0,0.00017058,2]
[373187432,1752898241963,-460.0,0.00017058,2]
[373187433,1752898241972,-460.0,0.00017058,2]
[373187434,1752898241982,-460.0,0.00017058,2]
[373187435,1752898241991,-460.0,0.00017058,2]
[373187436,1752898242000,-460.0,0.00017058,2]
[373187437,1752898242010,-460.0,0.00017058,2]
[373187438,1752898242019,-460.0,0.00017058,2]
[373187439,1752898242028,-460.0,0.00017058,2]
[373187440,1752898242038,-460.0,0.00017058,2]
[373187441,1752898242048,-460.0,0.00017058,2]
[373187442,1752898242057,-460.0,0.00017058,2]
[373187443,1752898242067,-460.0,0.00017058,2]
[373187444,1752898242077,-151.735129,0.00017058,2]
[373187445,1752898242086,-460.0,0.00017058,2]
[373187446,1752898242096,-460.0,0.00017058,2]
[373187447,1752898242106,-151.0,0.00017058,2]
[373187448,1752898242116,-460.0,0.00017058,2]
[373187449,1752898242126,-460.0,0.00017058,2]
[373187450,1752898242135,-460.0,0.00017058,2]
[373187451,1752898242145,-460.0,0.00017059,2]
[373187452,1752898242155,-460.0,0.00017059,2]
[373187453,1752898242164,-460.0,0.00017059,2]
[373187454,1752898242325,-460.0,0.00017059,2]
[373187455,1752898242335,-766.02,0.00017059,2]
[373187456,1752898242346,-472.15,0.00017059,2]
[373187457,1752898242356,-460.0,0.0001706,2]
[373187458,1752898242368,-1148.44,0.0001706,2]
[373187459,1752898242378,-460.0,0.0001706,2]
[373187460,1752898242388,-460.0,0.0001706,2]
[373187461,1752898242398,-460.0,0.0001706,2]
[373187462,1752898242408,-460.0,0.00017061,2]
[373187463,1752898242417,-2423.09,0.00017061,2]
[373187464,1752898242427,-794.42,0.00017061,2]
[373187465,1752898242437,-500.0,0.00017117,2]
[373187466,1752898242449,-500.0,0.00017117,2]
[373187467,1752898242458,-500.0,0.00017117,2]
[373187468,1752898242468,-518.97072283,0.00017121,2]
[373187469,1752898242477,-501.02221371,0.00017121,2]
[373187470,1752898242488,-504.34069573,0.00017121,2]
[373187471,1752898242497,-1000.0,0.00017121,2]
[373187472,1752898242507,-1000.0,0.00017121,2]
[373187473,1752898242517,-153.378373,0.00017121,2]
[373187474,1752898242526,-151.0,0.00017121,2]
[373187475,1752898242536,-151.0,0.00017121,2]
[373187476,1752898242545,-151.0,0.00017121,2]
[373187477,1752898242555,-151.0,0.00017121,2]
[373187478,1752898242565,-211.87789923,0.00017151,3]
[373187479,1752898242574,-460.0,0.00017158,2]
[373187480,1752898242583,-460.0,0.00017158,2]
[373187481,1752898242592,-460.0,0.00017158,2]
[373187482,1752898242602,-589.27289853,0.00017158,2]
[373187483,1752898242611,-460.0,0.00017158,2]
[373187484,1752898242621,-151.0,0.00017158,2]
[373187485,1752898242631,-151.0,0.00017158,2]
[373187486,1752898242640,-153.243988,0.00017158,2]
[373187487,1752898242650,-151.0,0.00017158,2]
[373187488,1752898242659,-151.0,0.00017158,2]
[373187489,1752898242669,-151.0,0.00017158,2]
[373187490,1752898242678,-151.0,0.0001721,2]
[373187491,1752898242687,-151.0,0.0001721,2]
[373187492,1752898242698,-151.0,0.0001721,2]
[373187493,1752898242707,-151.0,0.0001721,2]
[373187494,1752898242717,-151.0,0.0001721,2]
[373187495,1752898242726,-3404.49650662,0.0001721,2]
[373187496,1752898242735,-500.0,0.00017258,2]
[373187497,1752898242745,-500.0,0.00017258,2]
[373187498,1752898242754,-151.0,0.00017258,2]
[373187499,1752898242764,-234.571149,0.00017258,2]
[373187500,1752898242774,-151.0,0.00017258,2]
[373187501,1752898242783,-933.69,0.00017258,2]
[373187502,1752898242793,-151.0,0.00017258,2]
[373187503,1752898242803,-151.0,0.00017258,2]
[373187504,1752898242812,-1201.486897,0.00017258,2]
[373187505,1752898242822,-1201.486897,0.00017258,2]
[373187506,1752898242831,-1037.42,0.00017258,2]
[373187507,1752898242841,-460.0,0.00017259,2]
[373187508,1752898242850,-1590.24,0.00017259,2]
[373187509,1752898242860,-460.0,0.00017259,2]
[373187510,1752898242869,-886.81,0.00017259,2]
[373187511,1752898242879,-460.0,0.00017319,2]
[373187512,1752898242888,-460.0,0.00017319,2]
[373187513,1752898242898,-460.0,0.00017319,2]
[373187515,1752898242907,-1577.74,0.00017319,2]
[373187516,1752898242917,-460.0,0.00017319,2]
[373187517,1752898242926,-2013.66,0.0001732,2]
[373187518,1752898242936,-460.0,0.0001732,2]
[373187519,1752898242947,-356.34858829,0.0001732,2]
[373187520,1752898242956,-460.0,0.0001732,2]
[373187521,1752898242965,-1709.05,0.0001732,2]
[373187522,1752898242975,-460.0,0.0001732,2]
[373187523,1752898242984,-993.05,0.0001732,2]
[373187524,1752898242994,-460.0,0.0001732,2]
[373187525,1752898243003,-3636.05,0.0001732,2]
[373187528,1752898243012,-460.0,0.0001732,2]
[373187530,1752898243022,-460.0,0.0001732,2]
[373187531,1752898243031,-460.0,0.0001732,2]
[373187533,1752898243040,-460.0,0.0001732,2]
[373187535,1752898243049,-211.33368444,0.00017321,2]
[373187537,1752898243058,-504.22376068,0.00017321,2]
[373187538,1752898243068,-541.83976127,0.00017321,2]
[373187539,1752898243078,-460.0,0.00017321,2]
[373187540,1752898243087,-460.0,0.00017321,2]
[373187541,1752898243097,-1304.98,0.00017321,2]
[373187542,1752898243106,-234.11569496,0.00017332,2]
[373187543,1752898243115,-460.0,0.00017332,2]
[373187544,1752898243125,-460.0,0.00017332,2]
[373187545,1752898243134,-460.0,0.00017332,2]
[373187547,1752898243143,-460.0,0.00017332,2]
[373187549,1752898243153,-476.15220808,0.00017332,2]
[373187550,1752898243163,-460.0,0.00017332,2]
[373187552,1752898243173,-460.0,0.00017332,2]
[373187553,1752898243182,-460.0,0.00017332,2]
[373187555,1752898243192,-460.0,0.00017332,2]
[373187558,1752898243204,-460.0,0.00017332,2]
[373187561,1752898243214,-151.208484,0.00017332,2]
[373187563,1752898243224,-151.0,0.00017332,2]
[373187565,1752898243234,-151.490521,0.00017332,2]
[373187567,1752898243244,-460.0,0.00017332,2]
[373187569,1752898243253,-460.0,0.00017332,2]
[373187571,1752898243263,-460.0,0.00017332,2]
[373187573,1752898243272,-460.0,0.00017332,2]
[373187575,1752898243282,-290.592293,0.00017332,2]
[373187577,1752898243293,-290.592293,0.00017332,2]
[373187579,1752898243305,-173.7,0.00017332,2]
[373187581,1752898243315,-460.0,0.00017332,2]
[373187583,1752898243324,-423.28,0.00017332,2]
[373187585,1752898243334,-525.62,0.00017332,2]
[373187587,1752898243344,-460.0,0.00017332,2]
[373187589,1752898243353,-793.2,0.00017332,2]
[373187591,1752898243363,-460.0,0.00017332,2]
[373187593,1752898243374,-460.0,0.00017332,2]
[373187595,1752898243383,-460.0,0.00017332,2]
[373187597,1752898243393,-460.0,0.00017332,2]
[373187599,1752898243402,-460.0,0.00017332,2]
[373187601,1752898243411,-460.0,0.00017332,2]
[373187603,1752898243420,-460.0,0.00017332,2]
[373187605,1752898243430,-460.0,0.00017332,2]
[373187607,1752898243439,-460.0,0.00017332,2]
[373187609,1752898243451,-460.0,0.00017332,2]
[373187611,1752898243460,-460.0,0.00017332,2]
[373187613,1752898243470,-460.0,0.00017332,2]
[373187615,1752898243479,-460.0,0.00017332,2]
[373187617,1752898243488,-460.0,0.00017332,2]
[373187619,1752898243497,-535.41929037,0.00017333,2]
[373187621,1752898243506,-460.0,0.00017333,2]
[373187623,1752898243516,-460.0,0.00017333,2]
[373187625,1752898243525,-766.02,0.00017333,2]
[373187627,1752898243534,-472.15,0.00017333,2]
[373187629,1752898243544,-460.0,0.00017334,2]
[373187631,1752898243553,-1148.44,0.00017334,2]
[373187633,1752898243562,-460.0,0.00017334,2]
[373187635,1752898243572,-460.0,0.00017335,2]
[373187637,1752898243581,-2423.09,0.00017335,2]
[373187639,1752898243590,-794.42,0.00017335,2]
[373187641,1752898243600,-460.0,0.00017432,2]
[373187643,1752898243610,-460.0,0.00017432,2]
[373187645,1752898243619,-460.0,0.00017432,2]
[373187647,1752898243629,-3404.49650662,0.00017521,2]
[373187649,1752898243638,-151.282927,0.00017521,2]
[373187651,1752898243647,-151.0,0.00017521,2]
[373187653,1752898243657,-151.0,0.00017521,2]
[373187656,1752898243666,-151.0,0.00017521,2]
[373187658,1752898243676,-151.0,0.00017521,2]
[373187659,1752898243686,-151.0,0.00017521,2]
[373187662,1752898243696,-230.063457,0.00017521,2]
[373187664,1752898243706,-500.0,0.00017532,2]
[373187666,1752898243715,-193.52807795,0.00017532,2]
[373187668,1752898243724,-933.69,0.00017532,2]
[373187669,1752898243734,-1037.42,0.00017532,2]
[373187672,1752898243745,-1590.24,0.00017533,2]
[373187673,1752898243755,-460.0,0.00017533,2]
[373187674,1752898243766,-886.81,0.00017533,2]
[373187675,1752898243775,-800.0,0.00017542,2]
[373187676,1752898243785,-460.0,0.00017593,2]
[373187677,1752898243794,-460.0,0.00017593,2]
[373187679,1752898243803,-460.0,0.00017593,2]
[373187681,1752898243813,-1577.74,0.00017593,2]
[373187683,1752898243822,-460.0,0.00017593,2]
[373187685,1752898243831,-2013.66,0.00017594,2]
[373187687,1752898243841,-460.0,0.00017594,2]
[373187689,1752898243850,-460.0,0.00017594,2]
[373187691,1752898243860,-1709.05,0.00017594,2]
[373187693,1752898243870,-460.0,0.00017594,2]
[373187695,1752898243879,-993.05,0.00017594,2]
[373187698,1752898243888,-460.0,0.00017594,2]
[373187701,1752898243898,-3636.05,0.00017594,2]
[373187703,1752898243908,-460.0,0.00017594,2]
[373187704,1752898243917,-460.0,0.00017594,2]
[373187705,1752898243927,-460.0,0.00017594,2]
[373187706,1752898243936,-460.0,0.00017595,2]
[373187707,1752898243946,-460.0,0.00017595,2]
[373187708,1752898243956,-1304.98,0.00017595,2]
[373187710,1752898243965,-1730.99,0.000176,2]
[373187712,1752898243975,-460.0,0.00017606,2]
[373187714,1752898243985,-460.0,0.00017606,2]
[373187716,1752898243994,-527.74,0.00017606,2]
[373187718,1752898244003,-460.0,0.00017606,2]
[373187720,1752898244013,-460.0,0.00017606,2]
[373187722,1752898244023,-460.0,0.00017606,2]
[373187724,1752898244031,-559.32849972,0.00017606,2]
[373187726,1752898244041,-460.0,0.00017606,2]
[373187728,1752898244051,-460.0,0.00017606,2]
[373187730,1752898244060,-198.22,0.00017606,2]
[373187732,1752898244070,-460.0,0.00017606,2]
[373187734,1752898244080,-460.0,0.00017606,2]
[373187736,1752898244090,-460.0,0.00017606,2]
[373187738,1752898244099,-460.0,0.00017606,2]
[373187740,1752898244108,-525.62,0.00017606,2]
[373187742,1752898244118,-460.0,0.00017606,2]
[373187744,1752898244127,-793.2,0.00017606,2]
[373187746,1752898244137,-460.0,0.00017606,2]
[373187748,1752898244147,-460.0,0.00017606,2]
[373187750,1752898244156,-460.0,0.00017606,2]
[373187752,1752898244165,-460.0,0.00017606,2]
[373187753,1752898244174,-460.0,0.00017606,2]
[373187754,1752898244184,-460.0,0.00017606,2]
[373187755,1752898244194,-460.0,0.00017606,2]
[373187756,1752898244204,-460.0,0.00017606,2]
[373187757,1752898244213,-542.74400995,0.00017606,2]
[373187758,1752898244222,-460.0,0.00017606,2]
[373187759,1752898244232,-151.0,0.00017606,2]
[373187760,1752898244242,-460.0,0.00017606,2]
[373187761,1752898244252,-460.0,0.00017606,2]
[373187762,1752898244265,-460.0,0.00017607,2]
[373187763,1752898244282,-766.02,0.00017607,2]
[373187764,1752898244294,-472.15,0.00017607,2]
[373187765,1752898244304,-460.0,0.00017608,2]
[373187766,1752898244314,-1148.44,0.00017608,2]
[373187768,1752898244323,-460.0,0.00017608,2]
[373187770,1752898244333,-2423.09,0.00017609,2]
[373187772,1752898244343,-794.42,0.00017609,2]
[373187774,1752898244352,-501.15649651,0.00017665,2]
[373187776,1752898244361,-1000.0,0.00017665,2]
[373187778,1752898244372,-1005.7834431,0.00017665,2]
[373187779,1752898244383,-151.0,0.00017665,2]
[373187780,1752898244392,-151.0,0.00017665,2]
[373187781,1752898244401,-151.0,0.00017665,2]
[373187782,1752898244410,-625.75683967,0.00017668,2]
[373187783,1752898244419,-1008.02044078,0.00017668,2]
[373187784,1752898244428,-411.94009619,0.00017668,2]
[373187785,1752898244438,-460.0,0.00017706,2]
[373187786,1752898244450,-500.0,0.00017806,2]
[373187787,1752898244464,-933.69,0.00017806,2]
[373187788,1752898244474,-1037.42,0.00017806,2]
[373187789,1752898244483,-151.0,0.00017806,2]
[373187790,1752898244493,-151.0,0.00017806,2]
[373187791,1752898244502,-151.0,0.00017806,2]
[373187792,1752898244511,-1590.24,0.00017807,2]
[373187793,1752898244520,-460.0,0.00017807,2]
[373187794,1752898244529,-886.81,0.00017807,2]
[373187795,1752898244539,-151.862641,0.00017831,2]
[373187796,1752898244550,-151.0,0.00017831,2]
[373187797,1752898244559,-151.0,0.00017831,2]
[373187798,1752898244569,-151.0,0.00017831,2]
[373187799,1752898244579,-151.0,0.00017831,2]
[373187800,1752898244588,-3404.49650662,0.00017831,2]
[373187801,1752898244599,-213.21343299,0.00017852,2]
[373187802,1752898244609,-1251.86,0.0001786,3]
[373187803,1752898244619,-625.92,0.0001786,3]
[373187804,1752898244630,-312.96,0.0001786,3]
[373187805,1752898244640,-460.0,0.00017867,2]
[373187806,1752898244651,-460.0,0.00017867,2]
[373187807,1752898244662,-460.0,0.00017867,2]
[373187808,1752898244672,-1577.74,0.00017867,2]
[373187809,1752898244683,-460.0,0.00017867,2]
[373187810,1752898244694,-151.0,0.00017868,2]
[373187811,1752898244703,-2013.66,0.00017868,2]
[373187812,1752898244712,-151.0,0.00017868,2]
[373187813,1752898244722,-460.0,0.00017868,2]
[373187814,1752898244731,-460.0,0.00017868,2]
[373187815,1752898244741,-1709.05,0.00017868,2]
[373187816,1752898244750,-151.0,0.00017868,2]
[373187817,1752898244759,-151.0,0.00017868,2]
[373187818,1752898244769,-460.0,0.00017868,2]
[373187819,1752898244779,-993.05,0.00017868,2]
[373187820,1752898244788,-1201.486897,0.00017868,2]
[373187821,1752898244798,-460.0,0.00017868,2]
[373187822,1752898244807,-1201.486897,0.00017868,2]
[373187823,1752898244816,-3636.05,0.00017868,2]
[373187824,1752898244826,-460.0,0.00017868,2]
[373187825,1752898244835,-460.0,0.00017868,2]
[373187826,1752898244845,-460.0,0.00017868,2]
[373187827,1752898244855,-460.0,0.00017869,2]
[373187828,1752898244971,-1304.98,0.00017869,2]
[373187829,1752898244981,-460.0,0.0001788,2]
[373187830,1752898244990,-559.02,0.0001788,2]
[373187831,1752898245000,-460.0,0.0001788,2]
[373187832,1752898245010,-460.0,0.0001788,2]
[373187833,1752898245020,-460.0,0.0001788,2]
[373187834,1752898245029,-152.821105,0.0001788,2]
[373187835,1752898245039,-151.0,0.0001788,2]
[373187836,1752898245048,-151.0,0.0001788,2]
[373187837,1752898245058,-151.0,0.0001788,2]
[373187838,1752898245068,-460.0,0.0001788,2]
[373187839,1752898245077,-151.0,0.0001788,2]
[373187840,1752898245087,-525.62,0.0001788,2]
[373187841,1752898245097,-460.0,0.0001788,2]
[373187842,1752898245107,-793.2,0.0001788,2]
[373187843,1752898245117,-460.0,0.0001788,2]
[373187844,1752898245129,-474.89216432,0.0001788,2]
[373187845,1752898245140,-460.0,0.0001788,2]
[373187846,1752898245150,-460.0,0.0001788,2]
[373187847,1752898245161,-460.0,0.0001788,2]
[373187848,1752898245170,-460.0,0.0001788,2]
[373187849,1752898245180,-460.0,0.0001788,2]
[373187850,1752898245190,-460.0,0.0001788,2]
[373187851,1752898245201,-460.0,0.0001788,2]
[373187852,1752898245211,-460.0,0.0001788,2]
[373187853,1752898245221,-460.0,0.0001788,2]
[373187854,1752898245230,-460.0,0.00017881,2]
[373187855,1752898245240,-766.02,0.00017881,2]
[373187856,1752898245250,-472.15,0.00017881,2]
[373187857,1752898245259,-477.39810866,0.00017882,2]
[373187858,1752898245269,-1148.44,0.00017882,2]
[373187859,1752898245278,-460.0,0.00017882,2]
[373187860,1752898245288,-2423.09,0.00017883,2]
[373187861,1752898245301,-794.42,0.00017883,2]
[373187862,1752898245311,-460.0,0.0001798,2]
[373187863,1752898245320,-420.0,0.00018019,2]
[373187864,1752898245329,-1666.0,0.00018027,2]
[373187865,1752898245341,-500.0,0.0001808,2]
[373187866,1752898245351,-933.69,0.0001808,2]
[373187867,1752898245360,-1037.42,0.0001808,2]
[373187868,1752898245371,-151.0,0.00018081,2]
[373187869,1752898245381,-290.592293,0.00018081,2]
[373187870,1752898245391,-290.592293,0.00018081,2]
[373187871,1752898245400,-1590.24,0.00018081,2]
[373187872,1752898245409,-460.0,0.00018081,2]
[373187873,1752898245418,-886.81,0.00018081,2]
[373187874,1752898245428,-1410.0,0.00018115,2]
[373187875,1752898245438,-460.0,0.00018141,2]
[373187876,1752898245448,-460.0,0.00018141,2]
[373187877,1752898245457,-460.0,0.00018141,2]
[373187878,1752898245467,-1577.74,0.00018141,2]
[373187879,1752898245476,-460.0,0.00018141,2]
[373187880,1752898245486,-3404.49650662,0.00018141,2]
[373187881,1752898245495,-2013.66,0.00018142,2]
[373187882,1752898245504,-460.0,0.00018142,2]
[373187883,1752898245514,-460.0,0.00018142,2]
[373187884,1752898245523,-1709.05,0.00018142,2]
[373187885,1752898245532,-460.0,0.00018142,2]
[373187886,1752898245542,-993.05,0.00018142,2]
[373187887,1752898245551,-460.0,0.00018142,2]
[373187888,1752898245561,-3636.05,0.00018142,2]
[373187889,1752898245570,-460.0,0.00018142,2]
[373187890,1752898245579,-460.0,0.00018142,2]
[373187891,1752898245588,-460.0,0.00018142,2]
[373187892,1752898245598,-476.99766685,0.00018143,2]
[373187893,1752898245607,-1304.98,0.00018143,2]
[373187894,1752898245616,-460.0,0.00018154,2]
[373187895,1752898245626,-460.0,0.00018154,2]
[373187896,1752898245636,-259.07123815,0.00018154,2]
[373187897,1752898245645,-460.0,0.00018154,2]
[373187898,1752898245654,-525.62,0.00018154,2]
[373187899,1752898245664,-460.0,0.00018154,2]
[373187900,1752898245673,-793.2,0.00018154,2]
[373187901,1752898245682,-460.0,0.00018154,2]
[373187902,1752898245692,-460.0,0.00018154,2]
[373187903,1752898245702,-460.0,0.00018154,2]
[373187904,1752898245712,-460.0,0.00018154,2]
[373187905,1752898245721,-460.0,0.00018154,2]
[373187906,1752898245730,-460.0,0.00018154,2]
[373187907,1752898245740,-460.0,0.00018154,2]
[373187908,1752898245751,-477.7346262,0.00018154,2]
[373187909,1752898245760,-151.0,0.00018155,2]
[373187910,1752898245770,-152.480128,0.00018155,2]
[373187911,1752898245780,-198.453047,0.00018155,2]
[373187912,1752898245790,-151.0,0.00018155,2]
[373187913,1752898245799,-152.06639,0.00018155,2]
[373187914,1752898245809,-374.1,0.00018155,2]
[373187915,1752898245819,-766.02,0.00018155,2]
[373187916,1752898245828,-472.15,0.00018155,2]
[373187917,1752898245837,-1148.44,0.00018156,2]
[373187918,1752898245848,-460.0,0.00018156,2]
[373187919,1752898245860,-2423.09,0.00018157,2]
[373187920,1752898245871,-794.42,0.00018157,2]
[373187921,1752898245880,-1500.0,0.00018213,2]
[373187922,1752898245891,-460.0,0.00018254,2]
[373187923,1752898245901,-500.0,0.00018354,2]
[373187924,1752898245912,-151.0,0.00018354,2]
[373187925,1752898245923,-151.0,0.00018354,2]
[373187926,1752898245934,-151.0,0.00018354,2]
[373187927,1752898245946,-151.0,0.00018354,2]
[373187928,1752898245955,-151.0,0.00018354,2]
[373187929,1752898245965,-933.69,0.00018354,2]
[373187930,1752898245974,-1037.42,0.00018354,2]
[373187931,1752898245984,-1590.24,0.00018355,2]
[373187933,1752898245993,-460.0,0.00018355,2]
[373187935,1752898246003,-886.81,0.00018355,2]
[373187936,1752898246013,-151.0,0.00018355,2]
[373187937,1752898246022,-25000.0,0.00018367,2]
[373187938,1752898246032,-151.0,0.00018367,2]
[373187939,1752898246042,-716.45673598,0.00018367,2]
[373187940,1752898246053,-151.0,0.00018367,2]
[373187942,1752898246063,-151.0,0.00018367,2]
[373187943,1752898246072,-151.0,0.00018367,2]
[373187944,1752898246082,-151.0,0.00018367,2]
[373187945,1752898246091,-207.4,0.00018367,2]
[373187946,1752898246100,-151.0,0.00018367,2]
[373187947,1752898246110,-151.0,0.00018367,2]
[373187948,1752898246119,-3801.642,0.00018367,2]
[373187949,1752898246129,-151.0,0.00018367,2]
[373187950,1752898246139,-151.0,0.00018367,2]
[373187951,1752898246148,-151.0,0.00018367,2]
[373187952,1752898246158,-151.0,0.00018367,2]
[373187953,1752898246168,-151.0,0.00018367,2]
[373187954,1752898246178,-151.0,0.00018367,2]
[373187955,1752898246187,-151.0,0.00018367,2]
[373187957,1752898246199,-151.0,0.00018367,2]
[373187959,1752898246212,-151.0,0.00018367,2]
[373187961,1752898246223,-151.0,0.00018367,2]
[373187963,1752898246232,-151.0,0.00018367,2]
[373187965,1752898246242,-151.0,0.00018367,2]
[373187967,1752898246251,-151.0,0.00018367,2]
[373187969,1752898246261,-151.0,0.00018367,2]
[373187971,1752898246271,-151.0,0.00018367,2]
[373187973,1752898246280,-151.0,0.00018367,2]
[373187975,1752898246290,-151.0,0.00018367,2]
[373187977,1752898246303,-160.0,0.00018373,2]
[373187979,1752898246312,-839.454303,0.00018373,2]
[373187981,1752898246321,-214.52603969,0.00018373,2]
[373187983,1752898246331,-525.83049785,0.00018373,2]
[373187985,1752898246342,-160.0,0.00018373,2]
[373187987,1752898246351,-160.0,0.00018373,2]
[373187988,1752898246360,-230.94145789,0.00018373,2]
[373187990,1752898246370,-476.34170116,0.00018373,2]
[373187993,1752898246381,-160.0,0.00018373,2]
[373187995,1752898246390,-215.67360783,0.00018373,2]
[373187997,1752898246400,-12612.80205064,0.00018373,2]
[373187998,1752898246409,-160.0,0.00018373,2]
[373188000,1752898246418,-160.0,0.00018374,2]
[373188002,1752898246428,-160.0,0.00018374,2]
[373188004,1752898246437,-160.0,0.00018377,2]
[373188005,1752898246449,-460.0,0.00018415,2]
[373188007,1752898246459,-460.0,0.00018415,2]
[373188009,1752898246468,-460.0,0.00018415,2]
[373188010,1752898246478,-1577.74,0.00018415,2]
[373188011,1752898246488,-472.049229,0.00018415,2]
[373188012,1752898246498,-2013.66,0.00018416,2]
[373188013,1752898246510,-460.0,0.00018416,2]
[373188014,1752898246520,-460.0,0.00018416,2]
[373188015,1752898246530,-151.498239,0.00018416,2]
[373188017,1752898246539,-1709.05,0.00018416,2]
[373188019,1752898246549,-159.334252,0.00018416,2]
[373188020,1752898246559,-460.0,0.00018416,2]
[373188021,1752898246568,-993.05,0.00018416,2]
[373188022,1752898246577,-151.0,0.00018416,2]
[373188023,1752898246587,-151.0,0.00018416,2]
[373188024,1752898246597,-460.0,0.00018416,2]
[373188025,1752898246606,-3636.05,0.00018416,2]
[373188026,1752898246615,-460.0,0.00018416,2]
[373188027,1752898246625,-460.0,0.00018416,2]
[373188028,1752898246634,-460.0,0.00018416,2]
[373188029,1752898246643,-1304.98,0.00018417,2]
[373188030,1752898246653,-3942.302754,0.00018422,2]
[373188031,1752898246662,-460.0,0.00018428,2]
[373188032,1752898246672,-460.0,0.00018428,2]
[373188033,1752898246682,-151.847431,0.00018428,2]
[373188034,1752898246691,-460.0,0.00018428,2]
[373188035,1752898246701,-525.62,0.00018428,2]
[373188036,1752898246711,-151.0,0.00018428,2]
[373188037,1752898246721,-460.0,0.00018428,2]
[373188038,1752898246730,-793.2,0.00018428,2]
[373188039,1752898246743,-151.0,0.00018428,2]